﻿DEPARTMENT FAMILY,ENTITY,Date,Expense Type,Expense Area,Supplier,Transaction number,Amount,Description
DEPARTMENT OF HEALTH,BLACKPOOL TEACHING HOSPITALS NHS FT ,Jan-23,Contractual Clinical Services,Nuclear Medicine,The Christie NHS Foundation Trust,0000038984,"29,731.33",Laboratory Radio-Isotopes
DEPARTMENT OF HEALTH,BLACKPOOL TEACHING HOSPITALS NHS FT ,Jan-23,Contractual Clinical Services,Ultrasound,Independent Vascular Services Ltd,INV-9421,"61,500.00",Contractual Clinical Services
DEPARTMENT OF HEALTH,BLACKPOOL TEACHING HOSPITALS NHS FT ,Jan-23,Contractual Clinical Services,Ct Scanner,4 Ways Healthcare Ltd,4WHC08230448,"68,386.80",Contractual Clinical Services
DEPARTMENT OF HEALTH,BLACKPOOL TEACHING HOSPITALS NHS FT ,Jan-23,Contractual Clinical Services,Ct Scanner,Radiology Management Solutions Ltd,INV-1099,"29,376.00",Contractual Clinical Services
DEPARTMENT OF HEALTH,BLACKPOOL TEACHING HOSPITALS NHS FT ,Jan-23,Contractual Clinical Services,Ct Scanner,Radiology Management Solutions Ltd,INV-1074,"44,064.00",Contractual Clinical Services
DEPARTMENT OF HEALTH,BLACKPOOL TEACHING HOSPITALS NHS FT ,Jan-23,Contractual Clinical Services,Ct Scanner,Radiology Management Solutions Ltd,INV-1053,"49,536.00",Contractual Clinical Services
DEPARTMENT OF HEALTH,BLACKPOOL TEACHING HOSPITALS NHS FT ,Jan-23,Contractual Clinical Services,Mri,Siemens Healthcare Ltd,1051129697,"26,550.60",Imaging Equipment Purchases
DEPARTMENT OF HEALTH,BLACKPOOL TEACHING HOSPITALS NHS FT ,Jan-23,Contractual Clinical Services,Mri,Siemens Healthcare Ltd,1051129672,"26,550.60",Imaging Equipment Purchases
DEPARTMENT OF HEALTH,BLACKPOOL TEACHING HOSPITALS NHS FT ,Jan-23,Contractual Clinical Services,Admin - Radiology,Medica Reporting Ltd (Medica Group),SI100054,"84,152.00",Contractual Clinical Services
DEPARTMENT OF HEALTH,BLACKPOOL TEACHING HOSPITALS NHS FT ,Jan-23,Contractual Clinical Services,Admin - Radiology,Medica Reporting Ltd (Medica Group),SI103961,"70,228.00",Contractual Clinical Services
DEPARTMENT OF HEALTH,BLACKPOOL TEACHING HOSPITALS NHS FT ,Jan-23,Contractual Clinical Services,Admin - Radiology,Medica Reporting Ltd (Medica Group),SI102826,"73,508.00",Contractual Clinical Services
DEPARTMENT OF HEALTH,BLACKPOOL TEACHING HOSPITALS NHS FT ,Jan-23,Contractual Clinical Services,Blood Transfusion,Genmed.me Ltd,20540,"57,197.02",Laboratory Reagents
DEPARTMENT OF HEALTH,BLACKPOOL TEACHING HOSPITALS NHS FT ,Jan-23,Contractual Clinical Services,Contractual Clinical Services,Siemens Healthcare Diagnostics Ltd,114906029,"103,175.96",Laboratory Reagents
DEPARTMENT OF HEALTH,BLACKPOOL TEACHING HOSPITALS NHS FT ,Jan-23,Contractual Clinical Services,General Haematology,Genmed.me Ltd,20542,"31,499.80",Laboratory Bottles And Containers
DEPARTMENT OF HEALTH,BLACKPOOL TEACHING HOSPITALS NHS FT ,Jan-23,Contractual Clinical Services,Contractual Clinical Services,Beckman Coulter (UK) Ltd,1542235,"41,470.25",Laboratory Reagents
DEPARTMENT OF HEALTH,BLACKPOOL TEACHING HOSPITALS NHS FT ,Jan-23,Contractual Clinical Services,Microbiology,Genmed.me Ltd,20461,"167,125.75",Laboratory Bottles And Containers
DEPARTMENT OF HEALTH,BLACKPOOL TEACHING HOSPITALS NHS FT ,Jan-23,Contractual Clinical Services,Medical Staff - Oncology,Lancashire Teaching Hospitals NHS Foundation Trust,15362700,"50,133.37",Contractual Clinical Services
DEPARTMENT OF HEALTH,BLACKPOOL TEACHING HOSPITALS NHS FT ,Jan-23,Contractual Clinical Services,Medical Staff - Oncology,Lancashire Teaching Hospitals NHS Foundation Trust,15362961,"51,150.00",Contractual Clinical Services
DEPARTMENT OF HEALTH,BLACKPOOL TEACHING HOSPITALS NHS FT ,Jan-23,Contractual Clinical Services,Gastro Unit,Remedy Healthcare Solutions Ltd,BP0014,"28,110.00",Healthcare From Independent Sector
DEPARTMENT OF HEALTH,BLACKPOOL TEACHING HOSPITALS NHS FT ,Jan-23,Contractual Clinical Services,Gastro Unit,Remedy Healthcare Solutions Ltd,BP0015,"29,150.00",Healthcare From Independent Sector
DEPARTMENT OF HEALTH,BLACKPOOL TEACHING HOSPITALS NHS FT ,Jan-23,Contractual Clinical Services,Gastro Unit,Remedy Healthcare Solutions Ltd,BP0017,"29,150.00",Healthcare From Independent Sector
DEPARTMENT OF HEALTH,BLACKPOOL TEACHING HOSPITALS NHS FT ,Jan-23,Contractual Clinical Services,Gastro Unit,Remedy Healthcare Solutions Ltd,BP0020,"29,150.00",Healthcare From Independent Sector
DEPARTMENT OF HEALTH,BLACKPOOL TEACHING HOSPITALS NHS FT ,Jan-23,Contractual Clinical Services,Gastro Unit,Remedy Healthcare Solutions Ltd,BP004,"26,910.00",Healthcare From Independent Sector
DEPARTMENT OF HEALTH,BLACKPOOL TEACHING HOSPITALS NHS FT ,Jan-23,Contractual Clinical Services,Gastro Unit,Remedy Healthcare Solutions Ltd,BP006,"30,710.00",Healthcare From Independent Sector
DEPARTMENT OF HEALTH,BLACKPOOL TEACHING HOSPITALS NHS FT ,Jan-23,Contractual Clinical Services,Contractual Clinical Services,Siemens Financial Services Ltd,220/23/0008787,"31,225.95",Cleaning Equipment
DEPARTMENT OF HEALTH,BLACKPOOL TEACHING HOSPITALS NHS FT ,Jan-23,Contractual Clinical Services,Surgical Division,Remedy Healthcare Solutions Ltd,BP0021,"29,670.00",Healthcare From Independent Sector
DEPARTMENT OF HEALTH,BLACKPOOL TEACHING HOSPITALS NHS FT ,Jan-23,Contractual Clinical Services,Surgical Division,Remedy Healthcare Solutions Ltd,BP0022,"31,750.00",Healthcare From Independent Sector
DEPARTMENT OF HEALTH,BLACKPOOL TEACHING HOSPITALS NHS FT ,Jan-23,Contractual Clinical Services,Surgical Division,Remedy Healthcare Solutions Ltd,BP0026,"25,750.00",Healthcare From Independent Sector
DEPARTMENT OF HEALTH,BLACKPOOL TEACHING HOSPITALS NHS FT ,Jan-23,Contractual Clinical Services,Surgical Division,Remedy Healthcare Solutions Ltd,BP0027,"25,750.00",Healthcare From Independent Sector
DEPARTMENT OF HEALTH,BLACKPOOL TEACHING HOSPITALS NHS FT ,Jan-23,Contractual Clinical Services,Contractual Clinical Services,Sencat Ltd,INV-2176,"43,235.40",Contractual Clinical Services
DEPARTMENT OF HEALTH,BLACKPOOL TEACHING HOSPITALS NHS FT ,Jan-23,Facilities Management ,Soft FM ,Express Launderers,4540,"44,031.64",Laundry / Linen Tender
DEPARTMENT OF HEALTH,BLACKPOOL TEACHING HOSPITALS NHS FT ,Jan-23,Facilities Management ,Soft FM ,Express Launderers,4541,"81,600.00",Laundry / Linen Tender
DEPARTMENT OF HEALTH,BLACKPOOL TEACHING HOSPITALS NHS FT ,Jan-23,Facilities Management ,Soft FM ,Express Launderers,4542,"41,929.90",Laundry / Linen Tender
DEPARTMENT OF HEALTH,BLACKPOOL TEACHING HOSPITALS NHS FT ,Jan-23,Facilities Management ,Hard FM ,Atlas BFW Management Ltd,1710000623,"6,328,086.04",Facilities Management Contract
DEPARTMENT OF HEALTH,BLACKPOOL TEACHING HOSPITALS NHS FT ,Jan-23,Facilities Management ,Soft FM ,Mitie Waste And Environmental Services Ltd,245742,"28,162.60",Refuse & Clinical Waste
DEPARTMENT OF HEALTH,BLACKPOOL TEACHING HOSPITALS NHS FT ,Jan-23,Facilities Management ,Soft FM ,Srcl Ltd,0001784022,"25,025.94",Refuse & Clinical Waste
DEPARTMENT OF HEALTH,BLACKPOOL TEACHING HOSPITALS NHS FT ,Jan-23,Facilities Management ,Corporate,Sitekit Applications Ltd,1272,"51,300.00",Project Costs 
DEPARTMENT OF HEALTH,BLACKPOOL TEACHING HOSPITALS NHS FT ,Jan-23,Facilities Management ,ICT Management ,Frank Design Ltd,SI-3822,"39,480.00",Computer Maintenance
DEPARTMENT OF HEALTH,BLACKPOOL TEACHING HOSPITALS NHS FT ,Jan-23,Facilities Management ,ICT Management ,NHS Midlands and Lancashire CSU,7312324807,"67,450.00",Computer Maintenance
DEPARTMENT OF HEALTH,BLACKPOOL TEACHING HOSPITALS NHS FT ,Jan-23,Facilities Management ,ICT Management ,NHS Midlands and Lancashire CSU,7312324809,"49,630.00",Computer Maintenance
DEPARTMENT OF HEALTH,BLACKPOOL TEACHING HOSPITALS NHS FT ,Jan-23,Facilities Management ,ICT Management ,NHS Midlands and Lancashire CSU,7312324810,"55,670.00",Computer Maintenance
DEPARTMENT OF HEALTH,BLACKPOOL TEACHING HOSPITALS NHS FT ,Jan-23,Facilities Management ,Research And Development,Layton Medical Centre,NOVA19,"205,252.85",Research And Development
DEPARTMENT OF HEALTH,BLACKPOOL TEACHING HOSPITALS NHS FT ,Jan-23,Contractual Clinical Services,Contractual Clinical Services,Dac Beachcroft Claims Ltd,01-10134743,"50,082.60",Medical  Surgical Equipment 
DEPARTMENT OF HEALTH,BLACKPOOL TEACHING HOSPITALS NHS FT ,Jan-23,Corporate ,Finance,NHS England,7000047174,"27,500.00",Project Costs 
DEPARTMENT OF HEALTH,BLACKPOOL TEACHING HOSPITALS NHS FT ,Jan-23,Corporate ,Performance,MBI Healthcare Technologies Ltd,INV-0248,"46,080.00",External Consultancy Fees
DEPARTMENT OF HEALTH,BLACKPOOL TEACHING HOSPITALS NHS FT ,Jan-23,Corporate ,Ict Procurement Expenditure,Insight Direct (Uk) Ltd,2100463385,"56,658.96",Computer Software / License  Fees
DEPARTMENT OF HEALTH,BLACKPOOL TEACHING HOSPITALS NHS FT ,Jan-23,Capital Purchases ,Capital Purchases ,Stryker Uk Ltd,29568492,"34,648.03",Capital Purchases 
DEPARTMENT OF HEALTH,BLACKPOOL TEACHING HOSPITALS NHS FT ,Jan-23,Facilities Management ,Ict Maintenance Services,DH OpCo UK Ltd,5970002303,"28,500.00",Computer Maintenance
DEPARTMENT OF HEALTH,BLACKPOOL TEACHING HOSPITALS NHS FT ,Jan-23,Facilities Management ,Ict Maintenance Services,Insight Direct (Uk) Ltd,2100463386,"56,825.51",Computer Maintenance
DEPARTMENT OF HEALTH,BLACKPOOL TEACHING HOSPITALS NHS FT ,Jan-23,Facilities Management ,Ict Telecommunications,Bt Global Services,0790358341,"34,941.38",Telephone Rental and Call Charges
DEPARTMENT OF HEALTH,BLACKPOOL TEACHING HOSPITALS NHS FT ,Jan-23,Facilities Management ,Ict Telecommunications,Bt Global Services,0790356849,"38,668.60",Telephone Rental and Call Charges
DEPARTMENT OF HEALTH,BLACKPOOL TEACHING HOSPITALS NHS FT ,Jan-23,Corporate ,Finance,KPMG LLP,5502480814,"244,160.40",Professional Fees
DEPARTMENT OF HEALTH,BLACKPOOL TEACHING HOSPITALS NHS FT ,Jan-23,Corporate ,Finance,KPMG LLP,5502543485,"53,786.40",Professional Fees
DEPARTMENT OF HEALTH,BLACKPOOL TEACHING HOSPITALS NHS FT ,Jan-23,Corporate ,Finance,KPMG LLP,5502543484,"47,829.60",Professional Fees
DEPARTMENT OF HEALTH,BLACKPOOL TEACHING HOSPITALS NHS FT ,Jan-23,Corporate ,Finance,KPMG LLP,5502543483,"47,524.80",Professional Fees
DEPARTMENT OF HEALTH,BLACKPOOL TEACHING HOSPITALS NHS FT ,Jan-23,Corporate ,Finance,KPMG LLP,5502543480,"95,019.60",Professional Fees
DEPARTMENT OF HEALTH,BLACKPOOL TEACHING HOSPITALS NHS FT ,Jan-23,Multi-Divisional charge ,Multi-Divisional charge ,Retinue Solutions Ltd,8847,"285,004.42",Multi-Divisional charge 
DEPARTMENT OF HEALTH,BLACKPOOL TEACHING HOSPITALS NHS FT ,Jan-23,Multi-Divisional charge ,Multi-Divisional charge ,Retinue Solutions Ltd,8728,"503,016.59",Multi-Divisional charge 
DEPARTMENT OF HEALTH,BLACKPOOL TEACHING HOSPITALS NHS FT ,Jan-23,Multi-Divisional charge ,Multi-Divisional charge ,Retinue Solutions Ltd,8784,"442,344.82",Multi-Divisional charge 
DEPARTMENT OF HEALTH,BLACKPOOL TEACHING HOSPITALS NHS FT ,Jan-23,Multi-Divisional charge ,Multi-Divisional charge ,Retinue Solutions Ltd,8727,"226,283.57",Multi-Divisional charge 
DEPARTMENT OF HEALTH,BLACKPOOL TEACHING HOSPITALS NHS FT ,Jan-23,Multi-Divisional charge ,Multi-Divisional charge ,Retinue Solutions Ltd,8785,"281,386.66",Multi-Divisional charge 
DEPARTMENT OF HEALTH,BLACKPOOL TEACHING HOSPITALS NHS FT ,Jan-23,Multi-Divisional charge ,Multi-Divisional charge ,Retinue Solutions Ltd,8845,"88,601.96",Multi-Divisional charge 
DEPARTMENT OF HEALTH,BLACKPOOL TEACHING HOSPITALS NHS FT ,Jan-23,Multi-Divisional charge ,Multi-Divisional charge ,Retinue Solutions Ltd,8926,"263,392.44",Multi-Divisional charge 
DEPARTMENT OF HEALTH,BLACKPOOL TEACHING HOSPITALS NHS FT ,Jan-23,Corporate ,Corporate ,East Lancashire Hospitals N H S Trust,E0108621,"54,363.00",Rent
DEPARTMENT OF HEALTH,BLACKPOOL TEACHING HOSPITALS NHS FT ,Jan-23,Corporate ,ICS Collaboration,Lancashire Teaching Hospitals NHS Foundation Trust,15362192,"100,000.00",Project Costs 
DEPARTMENT OF HEALTH,BLACKPOOL TEACHING HOSPITALS NHS FT ,Jan-23,Families and Integrated Care ,Blackpool District Nursing,Medstrom Ltd,135885,"31,133.30",Bed Rentals 
DEPARTMENT OF HEALTH,BLACKPOOL TEACHING HOSPITALS NHS FT ,Jan-23,Capital Purchases ,Capital Purchases ,Wernick Refurbished Buildings,2300005,"114,000.00",Capital Purchases 
DEPARTMENT OF HEALTH,BLACKPOOL TEACHING HOSPITALS NHS FT ,Jan-23,Capital Purchases ,Capital Purchases ,Krol Corlett Construction Ltd,1913,"30,251.08",Capital Purchases 
DEPARTMENT OF HEALTH,BLACKPOOL TEACHING HOSPITALS NHS FT ,Jan-23,Capital Purchases ,Capital Purchases ,John Turner Construction,044404,"414,896.72",Capital Purchases 
DEPARTMENT OF HEALTH,BLACKPOOL TEACHING HOSPITALS NHS FT ,Jan-23,Capital Purchases ,Capital Purchases ,John Turner Construction,044403,"242,517.28",Capital Purchases 
DEPARTMENT OF HEALTH,BLACKPOOL TEACHING HOSPITALS NHS FT ,Jan-23,Capital Purchases ,Capital Purchases ,Smart Co Consulting Ltd,5733,"29,835.00",Capital Purchases 
DEPARTMENT OF HEALTH,BLACKPOOL TEACHING HOSPITALS NHS FT ,Jan-23,Capital Purchases ,Capital Purchases ,Strata Health Solutions Ltd,0670,"75,957.60",Capital Purchases 
DEPARTMENT OF HEALTH,BLACKPOOL TEACHING HOSPITALS NHS FT ,Jan-23,Capital Purchases ,Capital Purchases ,Constellia Public Limited,INV-1639,"237,221.06",Capital Purchases 
DEPARTMENT OF HEALTH,BLACKPOOL TEACHING HOSPITALS NHS FT ,Jan-23,Capital Purchases ,Capital Purchases ,Huntleigh Healthcare Ltd,12203838,"49,712.70",Capital Purchases 
DEPARTMENT OF HEALTH,BLACKPOOL TEACHING HOSPITALS NHS FT ,Jan-23,Capital Purchases ,Capital Purchases ,Paxman Coolers Ltd,PSI0005754,"31,890.00",Capital Purchases 
DEPARTMENT OF HEALTH,BLACKPOOL TEACHING HOSPITALS NHS FT ,Jan-23,Capital Purchases ,Capital Purchases ,Getinge Limited,3129153935,"38,475.84",Capital Purchases 
DEPARTMENT OF HEALTH,BLACKPOOL TEACHING HOSPITALS NHS FT ,Jan-23,Pharmacy Drugs Inventory ,Pharmacy Drugs Inventory ,Baxter Healthcare Ltd,22338695,"58,792.32",Pharmacy Drugs Inventory 
DEPARTMENT OF HEALTH,BLACKPOOL TEACHING HOSPITALS NHS FT ,Jan-23,Pharmacy Drugs Inventory ,Pharmacy Drugs Inventory ,Bayer Plc,824C463992,"114,057.00",Pharmacy Drugs Inventory 
DEPARTMENT OF HEALTH,BLACKPOOL TEACHING HOSPITALS NHS FT ,Jan-23,Pharmacy Drugs Inventory ,Pharmacy Drugs Inventory ,Bayer Plc,824C463993,"91,245.60",Pharmacy Drugs Inventory 
DEPARTMENT OF HEALTH,BLACKPOOL TEACHING HOSPITALS NHS FT ,Jan-23,Pharmacy Drugs Inventory ,Pharmacy Drugs Inventory ,Bristol Myers Squibb Pharmaceuticals Ltd,100701448,"81,981.28",Pharmacy Drugs Inventory 
DEPARTMENT OF HEALTH,BLACKPOOL TEACHING HOSPITALS NHS FT ,Jan-23,Pharmacy Drugs Inventory ,Pharmacy Drugs Inventory ,Janssen-Cilag Ltd,930900488,"95,385.60",Pharmacy Drugs Inventory 
DEPARTMENT OF HEALTH,BLACKPOOL TEACHING HOSPITALS NHS FT ,Jan-23,Pharmacy Drugs Inventory ,Pharmacy Drugs Inventory ,Novartis Pharmaceuticals Uk Ltd,92709230,"33,603.00",Pharmacy Drugs Inventory 
DEPARTMENT OF HEALTH,BLACKPOOL TEACHING HOSPITALS NHS FT ,Jan-23,Pharmacy Drugs Inventory ,Pharmacy Drugs Inventory ,Roche Products Ltd,1322264150,"51,795.89",Pharmacy Drugs Inventory 
DEPARTMENT OF HEALTH,BLACKPOOL TEACHING HOSPITALS NHS FT ,Jan-23,Pharmacy Drugs Inventory ,Pharmacy Drugs Inventory ,Roche Products Ltd,1322264151,"46,063.20",Pharmacy Drugs Inventory 
DEPARTMENT OF HEALTH,BLACKPOOL TEACHING HOSPITALS NHS FT ,Jan-23,Pharmacy Drugs Inventory ,Pharmacy Drugs Inventory ,Aah Hospital Service,45176285D,"62,337.60",Pharmacy Drugs Inventory 
DEPARTMENT OF HEALTH,BLACKPOOL TEACHING HOSPITALS NHS FT ,Jan-23,Pharmacy Drugs Inventory ,Pharmacy Drugs Inventory ,Alloga Uk Ltd,SIN103657158,"32,024.00",Pharmacy Drugs Inventory 
DEPARTMENT OF HEALTH,BLACKPOOL TEACHING HOSPITALS NHS FT ,Jan-23,Pharmacy Drugs Inventory ,Pharmacy Drugs Inventory ,Alloga Uk Ltd,SIN103662331,"38,500.00",Pharmacy Drugs Inventory 
DEPARTMENT OF HEALTH,BLACKPOOL TEACHING HOSPITALS NHS FT ,Jan-23,Pharmacy Drugs Inventory ,Pharmacy Drugs Inventory ,Baxter Healthcare Ltd,23004763,"58,792.32",Pharmacy Drugs Inventory 
DEPARTMENT OF HEALTH,BLACKPOOL TEACHING HOSPITALS NHS FT ,Jan-23,Pharmacy Drugs Inventory ,Pharmacy Drugs Inventory ,Bayer Plc,824C465460,"36,498.24",Pharmacy Drugs Inventory 
DEPARTMENT OF HEALTH,BLACKPOOL TEACHING HOSPITALS NHS FT ,Jan-23,Pharmacy Drugs Inventory ,Pharmacy Drugs Inventory ,Bristol Myers Squibb Pharmaceuticals Ltd,100702945,"38,146.73",Pharmacy Drugs Inventory 
DEPARTMENT OF HEALTH,BLACKPOOL TEACHING HOSPITALS NHS FT ,Jan-23,Pharmacy Drugs Inventory ,Pharmacy Drugs Inventory ,Jazz Pharmaceuticals,0090050965,"27,321.08",Pharmacy Drugs Inventory 
DEPARTMENT OF HEALTH,BLACKPOOL TEACHING HOSPITALS NHS FT ,Jan-23,Pharmacy Drugs Inventory ,Pharmacy Drugs Inventory ,Novartis Pharmaceuticals Uk Ltd,92715274,"36,469.20",Pharmacy Drugs Inventory 
DEPARTMENT OF HEALTH,BLACKPOOL TEACHING HOSPITALS NHS FT ,Jan-23,Pharmacy Drugs Inventory ,Pharmacy Drugs Inventory ,Roche Products Ltd,1322266814,"66,405.79",Pharmacy Drugs Inventory 
DEPARTMENT OF HEALTH,BLACKPOOL TEACHING HOSPITALS NHS FT ,Jan-23,Pharmacy Drugs Inventory ,Pharmacy Drugs Inventory ,Baxter Healthcare Ltd,23005861,"30,816.00",Pharmacy Drugs Inventory 
DEPARTMENT OF HEALTH,BLACKPOOL TEACHING HOSPITALS NHS FT ,Jan-23,Pharmacy Drugs Inventory ,Pharmacy Drugs Inventory ,Novartis Pharmaceuticals Uk Ltd,92719990,"30,184.68",Pharmacy Drugs Inventory 
DEPARTMENT OF HEALTH,BLACKPOOL TEACHING HOSPITALS NHS FT ,Jan-23,Pharmacy Drugs Inventory ,Pharmacy Drugs Inventory ,Csl Behring Uk Ltd,994052975,"37,043.50",Pharmacy Drugs Inventory 
DEPARTMENT OF HEALTH,BLACKPOOL TEACHING HOSPITALS NHS FT ,Jan-23,Pharmacy Drugs Inventory ,Pharmacy Drugs Inventory ,Baxter Healthcare Ltd,23007059,"58,792.32",Pharmacy Drugs Inventory 
DEPARTMENT OF HEALTH,BLACKPOOL TEACHING HOSPITALS NHS FT ,Jan-23,Pharmacy Drugs Inventory ,Pharmacy Drugs Inventory ,Lloyds Pharmacy Ltd,0000113110,"1,039,399.53",Pharmacy Drugs Inventory 
DEPARTMENT OF HEALTH,BLACKPOOL TEACHING HOSPITALS NHS FT ,Jan-23,Multi-Divisional charge ,Multi-Divisional charge ,NHS Supply Chain Co-ordination Limited,1123214723,"261,863.90",NHS Supply Chain Catalogue items
DEPARTMENT OF HEALTH,BLACKPOOL TEACHING HOSPITALS NHS FT ,Jan-23,Multi-Divisional charge ,Multi-Divisional charge ,NHS Supply Chain Co-ordination Limited,1123221225,"380,481.02",NHS Supply Chain Catalogue items
DEPARTMENT OF HEALTH,BLACKPOOL TEACHING HOSPITALS NHS FT ,Jan-23,Multi-Divisional charge ,Multi-Divisional charge ,NHS Supply Chain Co-ordination Limited,1123223817,"167,148.92",NHS Supply Chain Catalogue items
DEPARTMENT OF HEALTH,BLACKPOOL TEACHING HOSPITALS NHS FT ,Jan-23,Multi-Divisional charge ,Multi-Divisional charge ,NHS Supply Chain Co-ordination Limited,1123228311,"118,851.66",NHS Supply Chain Catalogue items
